[Event "Live Chess"]
[Site "Chess.com"]
[Date "2024.06.01"]
[Round "-"]
[White "FlyingChessKestrel13"]
[Black "Queensandpawns"]
[Result "0-1"]
[WhiteElo "2115"]
[BlackElo "2471"]
[TimeControl "300"]
[EndTime "9:56:15 PDT"]
[Termination "Queensandpawns won by resignation"]

1. e4 {[%clk 0:04:57.9]} 1... d5 {[%clk 0:04:57.4]} 2. exd5 {[%clk 0:04:55.7]}
2... c6 {[%clk 0:04:57.3]} 3. dxc6 {[%clk 0:04:53]} 3... Nxc6 {[%clk 0:04:57.2]}
4. Nf3 {[%clk 0:04:51.4]} 4... e5 {[%clk 0:04:56.7]} 5. d3 {[%clk 0:04:50]} 5...
Nf6 {[%clk 0:04:55.5]} 6. Be2 {[%clk 0:04:49]} 6... Bd6 {[%clk 0:04:54.3]} 7.
O-O {[%clk 0:04:48.1]} 7... h5 {[%clk 0:04:53.4]} 8. Nc3 {[%clk 0:04:46.2]} 8...
Kf8 {[%clk 0:04:52.5]} 9. Bg5 {[%clk 0:04:43.8]} 9... Be7 {[%clk 0:04:50.8]} 10.
Ne4 {[%clk 0:04:37.7]} 10... Nxe4 {[%clk 0:04:47.8]} 11. dxe4 {[%clk 0:04:37.6]}
11... Bxg5 {[%clk 0:04:46.1]} 12. Qxd8+ {[%clk 0:04:34.3]} 12... Bxd8 {[%clk
0:04:46]} 13. Rad1 {[%clk 0:04:33]} 13... Be6 {[%clk 0:04:44.9]} 14. Bb5 {[%clk
0:04:30.7]} 14... Bc7 {[%clk 0:04:43.4]} 15. c4 {[%clk 0:04:27.7]} 15... a6
{[%clk 0:04:42]} 16. Bxc6 {[%clk 0:04:27]} 16... bxc6 {[%clk 0:04:41.9]} 17. b4
{[%clk 0:04:26.3]} 17... Ke7 {[%clk 0:04:41.3]} 18. c5 {[%clk 0:04:25.5]} 18...
Rhd8 {[%clk 0:04:40.9]} 19. a3 {[%clk 0:04:24.6]} 19... Bg4 {[%clk 0:04:38.7]}
20. Rxd8 {[%clk 0:04:22.9]} 20... Rxd8 {[%clk 0:04:37.4]} 21. Ng5 {[%clk
0:04:22.1]} 21... Rd1 {[%clk 0:04:33.8]} 22. f3 {[%clk 0:04:20.8]} 22... Rxf1+
{[%clk 0:04:32.6]} 23. Kxf1 {[%clk 0:04:20.2]} 23... Be6 {[%clk 0:04:32.5]} 24.
Nxe6 {[%clk 0:04:18.1]} 24... Kxe6 {[%clk 0:04:32]} 25. Ke2 {[%clk 0:04:17.5]}
25... a5 {[%clk 0:04:31.7]} 26. Kd3 {[%clk 0:04:16.5]} 26... axb4 {[%clk
0:04:30.4]} 27. axb4 {[%clk 0:04:16.2]} 27... f5 {[%clk 0:04:29.7]} 28. Kc4
{[%clk 0:04:13.3]} 28... fxe4 {[%clk 0:04:28.2]} 29. fxe4 {[%clk 0:04:12.3]}
29... g5 {[%clk 0:04:27.2]} 30. g3 {[%clk 0:04:06.7]} 30... Kd7 {[%clk
0:04:23.8]} 31. h3 {[%clk 0:04:01.3]} 31... Bd8 {[%clk 0:04:23]} 32. g4 {[%clk
0:04:00.1]} 32... hxg4 {[%clk 0:04:12.6]} 33. hxg4 {[%clk 0:03:58.8]} 33... Kc7
{[%clk 0:04:12.5]} 34. Kb3 {[%clk 0:03:56.2]} 34... Kb7 {[%clk 0:04:11.4]} 35.
Kc4 {[%clk 0:03:52]} 35... Ka6 {[%clk 0:04:10.9]} 36. Kc3 {[%clk 0:03:48.3]}
36... Kb5 {[%clk 0:04:10.1]} 37. Kb3 {[%clk 0:03:47.3]} 37... Be7 {[%clk
0:04:05.5]} 38. Kc3 {[%clk 0:03:46.2]} 38... Bxc5 {[%clk 0:04:02.8]} 39. bxc5
{[%clk 0:03:45.3]} 39... Kxc5 {[%clk 0:04:02.7]} 40. Kd3 {[%clk 0:03:44.4]}
40... Kb4 {[%clk 0:04:02.3]} 0-1

[Event "Live Chess"]
[Site "Chess.com"]
[Date "2024.06.01"]
[Round "-"]
[White "alicechristina"]
[Black "Inglaterra"]
[Result "0-1"]
[WhiteElo "1765"]
[BlackElo "2036"]
[TimeControl "300"]
[EndTime "9:56:20 PDT"]
[Termination "Inglaterra won by checkmate"]

1. c4 {[%clk 0:04:55.2]} 1... e6 {[%clk 0:04:57]} 2. Nc3 {[%clk 0:04:51.7]} 2...
Nf6 {[%clk 0:04:55.9]} 3. e4 {[%clk 0:04:50.7]} 3... d5 {[%clk 0:04:53.1]} 4. e5
{[%clk 0:04:49.4]} 4... Nfd7 {[%clk 0:04:49.8]} 5. d4 {[%clk 0:04:48]} 5... dxc4
{[%clk 0:04:46.1]} 6. Bxc4 {[%clk 0:04:45.9]} 6... Be7 {[%clk 0:04:42.9]} 7. Nf3
{[%clk 0:04:44.5]} 7... O-O {[%clk 0:04:41.9]} 8. O-O {[%clk 0:04:43.6]} 8... a6
{[%clk 0:04:40.4]} 9. Qc2 {[%clk 0:04:42.4]} 9... c5 {[%clk 0:04:37.2]} 10. d5
{[%clk 0:04:39.6]} 10... exd5 {[%clk 0:04:27.6]} 11. Nxd5 {[%clk 0:04:38.2]}
11... Nc6 {[%clk 0:04:25]} 12. Nxe7+ {[%clk 0:04:34.6]} 12... Qxe7 {[%clk
0:04:23.3]} 13. Bg5 {[%clk 0:04:30.6]} 13... Qe8 {[%clk 0:04:21.4]} 14. Rfe1
{[%clk 0:04:21.5]} 14... Nb6 {[%clk 0:04:11.9]} 15. Bd3 {[%clk 0:04:18.4]} 15...
h6 {[%clk 0:04:09.2]} 16. Bh4 {[%clk 0:04:09.4]} 16... Nb4 {[%clk 0:04:03.5]}
17. Qd2 {[%clk 0:04:04.5]} 17... Nxd3 {[%clk 0:03:58.1]} 18. Qxd3 {[%clk
0:04:03.7]} 18... Be6 {[%clk 0:03:55.2]} 19. Rac1 {[%clk 0:03:56.3]} 19... Qc6
{[%clk 0:03:51.2]} 20. Qe2 {[%clk 0:03:38.4]} 20... Nd5 {[%clk 0:03:43.7]} 21.
Nd4 {[%clk 0:03:29.9]} 21... Qb6 {[%clk 0:03:31.9]} 22. Nxe6 {[%clk 0:03:27.8]}
22... fxe6 {[%clk 0:03:31.8]} 23. Qg4 {[%clk 0:03:02.8]} 23... Nf4 {[%clk
0:03:22.5]} 24. Rcd1 {[%clk 0:02:49.7]} 24... Rf7 {[%clk 0:03:11.1]} 25. b3
{[%clk 0:02:42.6]} 25... Nd5 {[%clk 0:03:03.3]} 26. Rd3 {[%clk 0:02:24.6]} 26...
Qa5 {[%clk 0:02:50.3]} 27. Red1 {[%clk 0:02:17.1]} 27... Qxa2 {[%clk 0:02:44.7]}
28. Qxe6 {[%clk 0:02:13.6]} 28... Nf4 {[%clk 0:02:27.1]} 29. Rd8+ {[%clk
0:01:51]} 29... Rxd8 {[%clk 0:02:08.7]} 30. Rxd8+ {[%clk 0:01:48.8]} 30... Kh7
{[%clk 0:02:08.3]} 31. Qd6 {[%clk 0:01:43.6]} 31... Ne2+ {[%clk 0:01:55.4]} 32.
Kf1 {[%clk 0:01:39.4]} 32... Nd4 {[%clk 0:01:50.7]} 33. g3 {[%clk 0:01:23.8]}
33... Qxf2# {[%clk 0:01:47.7]} 0-1

[Event "Live Chess"]
[Site "Chess.com"]
[Date "2024.06.01"]
[Round "-"]
[White "lyricalschemes"]
[Black "f4nomore"]
[Result "1-0"]
[WhiteElo "1648"]
[BlackElo "1193"]
[TimeControl "300"]
[EndTime "9:56:22 PDT"]
[Termination "lyricalschemes won by resignation"]

1. e4 {[%clk 0:04:58.8]} 1... g6 {[%clk 0:04:57.2]} 2. d4 {[%clk 0:04:57.8]}
2... Bg7 {[%clk 0:04:56.2]} 3. Nc3 {[%clk 0:04:57.2]} 3... d6 {[%clk 0:04:55.2]}
4. Be3 {[%clk 0:04:57.1]} 4... Nf6 {[%clk 0:04:52.7]} 5. Qd2 {[%clk 0:04:57]}
5... Ng4 {[%clk 0:04:50.7]} 6. Bf4 {[%clk 0:04:55.8]} 6... e5 {[%clk 0:04:48.8]}
7. dxe5 {[%clk 0:04:55]} 7... Nxe5 {[%clk 0:04:45.5]} 8. O-O-O {[%clk 0:04:53]}
8... O-O {[%clk 0:04:42.7]} 9. Bh6 {[%clk 0:04:47.2]} 9... Nbc6 {[%clk
0:04:28.5]} 10. Bxg7 {[%clk 0:04:45.2]} 10... Kxg7 {[%clk 0:04:26.9]} 11. h4
{[%clk 0:04:41.3]} 11... h5 {[%clk 0:04:25.1]} 12. Be2 {[%clk 0:04:35.1]} 12...
Be6 {[%clk 0:04:12.9]} 13. f4 {[%clk 0:04:32]} 13... Ng4 {[%clk 0:04:09.2]} 14.
f5 {[%clk 0:04:31.2]} 14... Nf2 {[%clk 0:04:05.1]} 15. fxe6 {[%clk 0:04:26.2]}
15... Nxd1 {[%clk 0:04:00.3]} 16. Qxd1 {[%clk 0:04:19.7]} 16... fxe6 {[%clk
0:03:57.6]} 17. Nf3 {[%clk 0:04:18.9]} 17... Ne5 {[%clk 0:03:51.1]} 18. Ng5
{[%clk 0:04:17.8]} 18... Qe7 {[%clk 0:03:14.8]} 19. Qd4 {[%clk 0:04:10.5]} 19...
c5 {[%clk 0:03:09.4]} 20. Qe3 {[%clk 0:04:08.9]} 20... Rf6 {[%clk 0:03:00.8]}
21. Qg3 {[%clk 0:04:03.8]} 21... Raf8 {[%clk 0:02:50.4]} 22. Nh3 {[%clk
0:03:52.1]} 22... a6 {[%clk 0:02:30.5]} 23. Bxh5 {[%clk 0:03:50.1]} 23... b5
{[%clk 0:02:22.3]} 24. Ne2 {[%clk 0:03:45.2]} 24... Rf1+ {[%clk 0:02:15.7]} 25.
Rxf1 {[%clk 0:03:40.4]} 25... Rxf1+ {[%clk 0:02:13.9]} 26. Kd2 {[%clk
0:03:39.6]} 26... Qf6 {[%clk 0:02:11.4]} 27. b3 {[%clk 0:03:29.9]} 27... c4
{[%clk 0:01:57.4]} 28. Nhf4 {[%clk 0:03:27.9]} 28... c3+ {[%clk 0:01:47.8]} 29.
Ke3 {[%clk 0:03:19.3]} 29... Kh7 {[%clk 0:01:08.9]} 30. Bf3 {[%clk 0:03:15.5]}
30... Nxf3 {[%clk 0:00:53.5]} 31. gxf3 {[%clk 0:03:12.4]} 31... Rc1 {[%clk
0:00:47.2]} 32. Nxc1 {[%clk 0:03:11.1]} 32... e5 {[%clk 0:00:42.5]} 33. Qxg6+
{[%clk 0:03:07.9]} 33... Qxg6 {[%clk 0:00:40.9]} 34. Nxg6 {[%clk 0:03:07.8]}
34... Kxg6 {[%clk 0:00:39.8]} 35. f4 {[%clk 0:03:05.7]} 35... exf4+ {[%clk
0:00:37.7]} 36. Kxf4 {[%clk 0:03:05.6]} 36... Kh5 {[%clk 0:00:36.4]} 37. e5
{[%clk 0:03:03.1]} 37... dxe5+ {[%clk 0:00:34.7]} 38. Kxe5 {[%clk 0:03:03]}
38... Kxh4 {[%clk 0:00:33.8]} 39. Kd4 {[%clk 0:03:02.9]} 39... Kg5 {[%clk
0:00:32.3]} 40. Kxc3 {[%clk 0:03:02.2]} 40... Kf6 {[%clk 0:00:31.2]} 41. Nd3
{[%clk 0:03:02.1]} 41... Ke6 {[%clk 0:00:30.1]} 42. Kb4 {[%clk 0:03:02]} 42...
Kd6 {[%clk 0:00:28.8]} 43. Ka5 {[%clk 0:03:01.9]} 43... Kc6 {[%clk 0:00:26]} 44.
Kxa6 {[%clk 0:03:00.7]} 44... Kc7 {[%clk 0:00:18.4]} 45. Kxb5 {[%clk 0:03:00.6]}
45... Kb7 {[%clk 0:00:17.2]} 46. c4 {[%clk 0:03:00.3]} 46... Kc7 {[%clk
0:00:15.9]} 47. Nc1 {[%clk 0:03:00.2]} 47... Kb7 {[%clk 0:00:14.9]} 48. Ne2
{[%clk 0:03:00.1]} 48... Ka7 {[%clk 0:00:12.9]} 49. Ng1 {[%clk 0:03:00]} 49...
Kb7 {[%clk 0:00:12.2]} 50. Nh3 {[%clk 0:02:59.9]} 50... Ka7 {[%clk 0:00:11.6]}
51. Ng5 {[%clk 0:02:59.8]} 51... Kb7 {[%clk 0:00:11.3]} 52. Nh7 {[%clk
0:02:59.7]} 52... Ka7 {[%clk 0:00:11]} 53. Nf6 {[%clk 0:02:59.5]} 53... Kb7
{[%clk 0:00:10.9]} 54. a3 {[%clk 0:02:58.8]} 54... Ka7 {[%clk 0:00:10.8]} 55.
Ne4 {[%clk 0:02:58.6]} 55... Kb7 {[%clk 0:00:10.7]} 56. Nc3 {[%clk 0:02:58.4]}
56... Ka7 {[%clk 0:00:10.6]} 57. a4 {[%clk 0:02:57.7]} 57... Kb7 {[%clk
0:00:10.5]} 58. c5 {[%clk 0:02:57.1]} 58... Ka7 {[%clk 0:00:10.4]} 59. c6 {[%clk
0:02:56.8]} 59... Kb8 {[%clk 0:00:09.1]} 60. Kb6 {[%clk 0:02:56.4]} 60... Kc8
{[%clk 0:00:08]} 61. Nb5 {[%clk 0:02:56]} 61... Kb8 {[%clk 0:00:07.1]} 62. c7+
{[%clk 0:02:55.2]} 62... Kc8 {[%clk 0:00:06]} 63. Nd6+ {[%clk 0:02:54.7]} 63...
Kd7 {[%clk 0:00:03.7]} 64. c8=Q+ {[%clk 0:02:54.6]} 64... Kxd6 {[%clk
0:00:02.8]} 65. Qc5+ {[%clk 0:02:54.5]} 1-0

[Event "Live Chess"]
[Site "Chess.com"]
[Date "2024.06.01"]
[Round "-"]
[White "KyryloPoluliakh"]
[Black "grillage"]
[Result "1-0"]
[WhiteElo "1479"]
[BlackElo "1880"]
[TimeControl "300"]
[EndTime "9:56:23 PDT"]
[Termination "KyryloPoluliakh won on time"]

1. c4 {[%clk 0:04:57.7]} 1... c5 {[%clk 0:04:57]} 2. Nc3 {[%clk 0:04:56.8]} 2...
Nc6 {[%clk 0:04:56.1]} 3. g3 {[%clk 0:04:55]} 3... g6 {[%clk 0:04:55.5]} 4. Bg2
{[%clk 0:04:53.1]} 4... Bg7 {[%clk 0:04:54.3]} 5. e3 {[%clk 0:04:50.9]} 5... Nf6
{[%clk 0:04:52.1]} 6. Nge2 {[%clk 0:04:49.5]} 6... O-O {[%clk 0:04:51.2]} 7. O-O
{[%clk 0:04:47.6]} 7... d6 {[%clk 0:04:50.2]} 8. d4 {[%clk 0:04:45.4]} 8... cxd4
{[%clk 0:04:48.9]} 9. exd4 {[%clk 0:04:44.9]} 9... Bg4 {[%clk 0:04:39.9]} 10. a3
{[%clk 0:04:39.4]} 10... Rc8 {[%clk 0:04:28.6]} 11. b4 {[%clk 0:04:31.7]} 11...
Ne8 {[%clk 0:04:19.2]} 12. Qd2 {[%clk 0:04:22.8]} 12... Qd7 {[%clk 0:03:50.4]}
13. Re1 {[%clk 0:04:15.4]} 13... Bh3 {[%clk 0:03:47.4]} 14. Bh1 {[%clk
0:04:12.3]} 14... Nf6 {[%clk 0:03:42.3]} 15. Bb2 {[%clk 0:04:07.1]} 15... Nd8
{[%clk 0:03:16.3]} 16. Qd3 {[%clk 0:03:48.4]} 16... Bf5 {[%clk 0:03:11.5]} 17.
Ne4 {[%clk 0:03:37.9]} 17... Nxe4 {[%clk 0:03:05.6]} 18. Bxe4 {[%clk 0:03:33.5]}
18... Bxe4 {[%clk 0:03:04.5]} 19. Qxe4 {[%clk 0:03:33]} 19... Rxc4 {[%clk
0:02:59.7]} 20. Nf4 {[%clk 0:03:24.8]} 20... e6 {[%clk 0:02:34.7]} 21. Rac1
{[%clk 0:03:16.7]} 21... Rxc1 {[%clk 0:02:25.2]} 22. Rxc1 {[%clk 0:03:14.4]}
22... d5 {[%clk 0:02:23.3]} 23. Qe3 {[%clk 0:03:07.8]} 23... Nc6 {[%clk
0:02:21.7]} 24. Nd3 {[%clk 0:03:03.6]} 24... b6 {[%clk 0:02:19.5]} 25. Rc2
{[%clk 0:02:46.8]} 25... Rc8 {[%clk 0:02:01.3]} 26. Ne5 {[%clk 0:02:32.4]} 26...
Nxe5 {[%clk 0:01:58]} 27. Rxc8+ {[%clk 0:02:29]} 27... Qxc8 {[%clk 0:01:52.4]}
28. dxe5 {[%clk 0:02:27.8]} 28... Qc2 {[%clk 0:01:46.6]} 29. Bd4 {[%clk
0:02:17.7]} 29... h6 {[%clk 0:01:38.2]} 30. h4 {[%clk 0:01:58.9]} 30... h5
{[%clk 0:01:35]} 31. Kh2 {[%clk 0:01:52.4]} 31... Kh7 {[%clk 0:01:18]} 32. Qf4
{[%clk 0:01:48.2]} 32... Qf5 {[%clk 0:01:04.7]} 33. Qc1 {[%clk 0:01:45.4]} 33...
Qe4 {[%clk 0:00:51.4]} 34. Qc3 {[%clk 0:01:31.3]} 34... Bh8 {[%clk 0:00:19.6]}
35. b5 {[%clk 0:01:26.6]} 35... Bg7 {[%clk 0:00:17.9]} 36. a4 {[%clk 0:01:23.5]}
36... Qb1 {[%clk 0:00:16.2]} 37. Qc7 {[%clk 0:01:14.4]} 37... Qe4 {[%clk
0:00:15.2]} 38. Bc3 {[%clk 0:01:02.9]} 38... Qf3 {[%clk 0:00:12.8]} 39. Bd4
{[%clk 0:00:49.5]} 39... Qe4 {[%clk 0:00:10.4]} 40. Qc3 {[%clk 0:00:46.6]} 40...
Bf8 {[%clk 0:00:07.9]} 41. a5 {[%clk 0:00:33.9]} 41... Qf5 {[%clk 0:00:07.1]}
42. axb6 {[%clk 0:00:30.6]} 42... axb6 {[%clk 0:00:06.7]} 43. Bxb6 {[%clk
0:00:29]} 43... Bg7 {[%clk 0:00:06.4]} 44. Bd4 {[%clk 0:00:27.3]} 44... Qe4
{[%clk 0:00:05.5]} 45. b6 {[%clk 0:00:24.8]} 45... Qb1 {[%clk 0:00:04.7]} 46.
Qc7 {[%clk 0:00:20.5]} 46... Qb4 {[%clk 0:00:02.6]} 47. Qc5 {[%clk 0:00:16.6]}
47... Qb3 {[%clk 0:00:00.8]} 48. Qc6 {[%clk 0:00:14.7]} 1-0

[Event "Live Chess"]
[Site "Chess.com"]
[Date "2024.06.01"]
[Round "-"]
[White "Enhard"]
[Black "E2E4colchester"]
[Result "0-1"]
[WhiteElo "1428"]
[BlackElo "1496"]
[TimeControl "300"]
[EndTime "9:56:24 PDT"]
[Termination "E2E4colchester won by resignation"]

1. d4 {[%clk 0:04:58.3]} 1... d5 {[%clk 0:04:58]} 2. c4 {[%clk 0:04:57.2]} 2...
dxc4 {[%clk 0:04:55.4]} 3. e3 {[%clk 0:04:56.1]} 3... e6 {[%clk 0:04:53.2]} 4.
Bxc4 {[%clk 0:04:54.6]} 4... Nf6 {[%clk 0:04:48]} 5. Nf3 {[%clk 0:04:51.5]} 5...
Be7 {[%clk 0:04:46.8]} 6. Nc3 {[%clk 0:04:48.9]} 6... O-O {[%clk 0:04:45.6]} 7.
b3 {[%clk 0:04:47.5]} 7... b6 {[%clk 0:04:40.9]} 8. Bb2 {[%clk 0:04:44.7]} 8...
Bb7 {[%clk 0:04:39.8]} 9. O-O {[%clk 0:04:43.4]} 9... c5 {[%clk 0:04:32.6]} 10.
Be2 {[%clk 0:04:41]} 10... cxd4 {[%clk 0:04:28.9]} 11. Nxd4 {[%clk 0:04:39.5]}
11... Nc6 {[%clk 0:04:25]} 12. Nxc6 {[%clk 0:04:36.7]} 12... Bxc6 {[%clk
0:04:23.9]} 13. Bf3 {[%clk 0:04:36.2]} 13... Qxd1 {[%clk 0:04:15.9]} 14. Bxd1
{[%clk 0:04:32.1]} 14... Rfd8 {[%clk 0:04:09.8]} 15. Rb1 {[%clk 0:04:20.6]}
15... Bb4 {[%clk 0:03:59.2]} 16. Be2 {[%clk 0:04:17.4]} 16... Rd7 {[%clk
0:03:41.8]} 17. Rfd1 {[%clk 0:04:15.4]} 17... Rad8 {[%clk 0:03:40.4]} 18. Rxd7
{[%clk 0:04:14]} 18... Rxd7 {[%clk 0:03:38.8]} 19. Rd1 {[%clk 0:04:13.5]} 19...
Rxd1+ {[%clk 0:03:32.4]} 20. Bxd1 {[%clk 0:04:10.6]} 20... Bxc3 {[%clk
0:03:21.6]} 21. Bxc3 {[%clk 0:04:09.4]} 21... Ne4 {[%clk 0:03:20.7]} 22. Be1
{[%clk 0:04:00.7]} 22... Bb5 {[%clk 0:03:19.4]} 23. f3 {[%clk 0:03:57.2]} 23...
Nf6 {[%clk 0:03:15.3]} 24. Bc3 {[%clk 0:03:47.3]} 24... Nd5 {[%clk 0:03:11.8]}
25. Bd2 {[%clk 0:03:44.2]} 25... Nf6 {[%clk 0:03:08.1]} 26. e4 {[%clk
0:03:32.6]} 26... a5 {[%clk 0:03:06.2]} 27. Bc3 {[%clk 0:03:28.9]} 27... Nh5
{[%clk 0:03:04.2]} 28. Bd2 {[%clk 0:03:22.6]} 28... Nf6 {[%clk 0:03:02.8]} 29.
Kf2 {[%clk 0:03:21.7]} 29... Nd7 {[%clk 0:03:01.8]} 30. f4 {[%clk 0:03:07]}
30... Nc5 {[%clk 0:03:00.8]} 31. e5 {[%clk 0:02:58.7]} 31... Nd3+ {[%clk
0:02:54.5]} 32. Ke3 {[%clk 0:02:53.2]} 32... f6 {[%clk 0:02:45.3]} 33. exf6
{[%clk 0:02:50.6]} 33... gxf6 {[%clk 0:02:44.1]} 34. Bc2 {[%clk 0:02:47.5]}
34... Nc5 {[%clk 0:02:39.5]} 35. Bc3 {[%clk 0:02:42.8]} 35... Kg7 {[%clk
0:02:38]} 36. Bd4 {[%clk 0:02:41.5]} 36... h6 {[%clk 0:02:33.3]} 37. Bxc5 {[%clk
0:02:39.9]} 37... bxc5 {[%clk 0:02:32.4]} 38. g3 {[%clk 0:02:36.1]} 38... Kf7
{[%clk 0:02:31.5]} 39. Bd3 {[%clk 0:02:33.3]} 39... Bxd3 {[%clk 0:02:28.9]} 40.
Kxd3 {[%clk 0:02:32.4]} 40... e5 {[%clk 0:02:28]} 41. Ke4 {[%clk 0:02:29.8]}
41... Ke6 {[%clk 0:02:26.9]} 42. f5+ {[%clk 0:02:24.8]} 42... Kd6 {[%clk
0:02:24.1]} 43. h4 {[%clk 0:02:19.9]} 43... h5 {[%clk 0:02:20.3]} 44. a3 {[%clk
0:02:14.3]} 44... Kc6 {[%clk 0:02:19.3]} 45. a4 {[%clk 0:02:12.4]} 45... Kd6
{[%clk 0:02:17.3]} 46. Kd3 {[%clk 0:02:04.8]} 46... Kd5 {[%clk 0:02:15.1]} 47.
Ke3 {[%clk 0:02:02.9]} 47... e4 {[%clk 0:02:13.2]} 48. Kf4 {[%clk 0:01:47.9]}
48... Kd4 {[%clk 0:02:11.1]} 49. g4 {[%clk 0:01:46.9]} 49... e3 {[%clk
0:02:09.7]} 50. gxh5 {[%clk 0:01:45]} 50... e2 {[%clk 0:02:08.5]} 51. h6 {[%clk
0:01:44.6]} 51... e1=Q {[%clk 0:02:06.2]} 52. h7 {[%clk 0:01:44]} 52... Qe8
{[%clk 0:02:03.6]} 53. Kg4 {[%clk 0:01:42.3]} 53... Qh8 {[%clk 0:02:02.6]} 54.
Kh5 {[%clk 0:01:40.6]} 54... Qxh7+ {[%clk 0:02:01.8]} 0-1

[Event "Live Chess"]
[Site "Chess.com"]
[Date "2024.06.01"]
[Round "-"]
[White "TigerTank70"]
[Black "TheSmoulderingMaster"]
[Result "1-0"]
[WhiteElo "2171"]
[BlackElo "1752"]
[TimeControl "300"]
[EndTime "9:56:24 PDT"]
[Termination "TigerTank70 won by resignation"]

1. e4 {[%clk 0:04:57.2]} 1... c5 {[%clk 0:04:52.2]} 2. d4 {[%clk 0:04:55.6]}
2... cxd4 {[%clk 0:04:49.1]} 3. c3 {[%clk 0:04:55.2]} 3... dxc3 {[%clk
0:04:48.5]} 4. Nxc3 {[%clk 0:04:54.8]} 4... Nc6 {[%clk 0:04:46.9]} 5. Nf3 {[%clk
0:04:54.4]} 5... d6 {[%clk 0:04:46.3]} 6. Bc4 {[%clk 0:04:54]} 6... Nf6 {[%clk
0:04:42.5]} 7. Qe2 {[%clk 0:04:52.4]} 7... e6 {[%clk 0:04:41.5]} 8. O-O {[%clk
0:04:50.8]} 8... Be7 {[%clk 0:04:40.9]} 9. Rd1 {[%clk 0:04:50.4]} 9... O-O
{[%clk 0:04:39.6]} 10. Bf4 {[%clk 0:04:45.4]} 10... e5 {[%clk 0:04:38.4]} 11.
Bxe5 {[%clk 0:04:44]} 11... Qb6 {[%clk 0:04:33.6]} 12. Bxd6 {[%clk 0:04:39.3]}
12... Bxd6 {[%clk 0:04:31.7]} 13. Rxd6 {[%clk 0:04:39.2]} 13... Bg4 {[%clk
0:04:27.7]} 14. h3 {[%clk 0:04:30.6]} 14... Bxf3 {[%clk 0:04:25.5]} 15. Qxf3
{[%clk 0:04:29.7]} 15... Qxb2 {[%clk 0:04:23]} 16. Rad1 {[%clk 0:04:29.3]} 16...
Ne5 {[%clk 0:04:18.8]} 17. Qg3 {[%clk 0:04:18.2]} 17... Nxc4 {[%clk 0:04:07.5]}
18. Rxf6 {[%clk 0:04:17]} 18... Kh8 {[%clk 0:04:06.5]} 19. Rf3 {[%clk
0:04:03.4]} 19... Nd2 {[%clk 0:04:02.8]} 20. Rd3 {[%clk 0:03:58.3]} 20... Nc4
{[%clk 0:03:55.6]} 21. Nd5 {[%clk 0:03:55.3]} 21... Qxa2 {[%clk 0:03:48.3]} 22.
Nc7 {[%clk 0:03:48.4]} 22... Rac8 {[%clk 0:03:46]} 23. Rc3 {[%clk 0:03:29]}
23... Nb2 {[%clk 0:03:38.1]} 24. Rdc1 {[%clk 0:03:27]} 24... Qa5 {[%clk
0:03:30.6]} 25. Ne6 {[%clk 0:03:19.5]} 25... Qxc3 {[%clk 0:03:17.8]} 26. Rxc3
{[%clk 0:03:17.2]} 26... fxe6 {[%clk 0:03:15.3]} 27. Rxc8 {[%clk 0:03:11.5]}
27... Rxc8 {[%clk 0:03:14.2]} 28. Qe5 {[%clk 0:03:10]} 28... Nc4 {[%clk
0:03:11.2]} 29. Qxe6 {[%clk 0:03:09.4]} 1-0

[Event "Live Chess"]
[Site "Chess.com"]
[Date "2024.06.01"]
[Round "-"]
[White "Grieve72"]
[Black "GerardATHart"]
[Result "1-0"]
[WhiteElo "2637"]
[BlackElo "1447"]
[TimeControl "300"]
[EndTime "9:56:36 PDT"]
[Termination "Grieve72 won by resignation"]

1. e4 {[%clk 0:04:59.4]} 1... e5 {[%clk 0:04:57.3]} 2. Nf3 {[%clk 0:04:58.5]}
2... Nc6 {[%clk 0:04:53.3]} 3. Bc4 {[%clk 0:04:58.2]} 3... Nf6 {[%clk
0:04:46.2]} 4. Ng5 {[%clk 0:04:57]} 4... d5 {[%clk 0:04:44.5]} 5. exd5 {[%clk
0:04:56.9]} 5... Na5 {[%clk 0:04:43.1]} 6. Bb5+ {[%clk 0:04:56.5]} 6... c6
{[%clk 0:04:41.8]} 7. dxc6 {[%clk 0:04:56.4]} 7... bxc6 {[%clk 0:04:40.5]} 8.
Bd3 {[%clk 0:04:56.2]} 8... h6 {[%clk 0:04:38.2]} 9. Ne4 {[%clk 0:04:55.1]} 9...
c5 {[%clk 0:04:08]} 10. Nbc3 {[%clk 0:04:47.5]} 10... c4 {[%clk 0:03:57]} 11.
Nxf6+ {[%clk 0:04:46.2]} 11... gxf6 {[%clk 0:03:52.9]} 12. Be4 {[%clk
0:04:46.1]} 12... Rb8 {[%clk 0:03:48.5]} 13. Qh5 {[%clk 0:04:44.6]} 13... Be6
{[%clk 0:03:28.5]} 14. O-O {[%clk 0:04:43.7]} 14... Qd7 {[%clk 0:03:17.2]} 15.
d3 {[%clk 0:04:42.2]} 15... f5 {[%clk 0:03:05]} 16. Bf3 {[%clk 0:04:38.3]} 16...
cxd3 {[%clk 0:02:48.1]} 17. cxd3 {[%clk 0:04:38.2]} 17... Qxd3 {[%clk
0:02:46.5]} 18. Rd1 {[%clk 0:04:36.8]} 18... Qc4 {[%clk 0:02:38.8]} 19. Nd5
{[%clk 0:04:36.3]} 19... e4 {[%clk 0:02:33.4]} 20. b3 {[%clk 0:04:28.7]} 20...
Qc2 {[%clk 0:02:24.2]} 21. Nf6+ {[%clk 0:04:23.6]} 21... Ke7 {[%clk 0:02:21.6]}
22. Qh4 {[%clk 0:04:23.1]} 22... exf3 {[%clk 0:02:12.3]} 23. Ba3+ {[%clk
0:04:22.3]} 1-0

[Event "Live Chess"]
[Site "Chess.com"]
[Date "2024.06.01"]
[Round "-"]
[White "Berdgross"]
[Black "14141409"]
[Result "0-1"]
[WhiteElo "579"]
[BlackElo "2561"]
[TimeControl "300"]
[EndTime "9:56:40 PDT"]
[Termination "14141409 won by resignation"]

1. e4 {[%clk 0:04:55.1]} 1... e5 {[%clk 0:04:58.6]} 2. d3 {[%clk 0:04:55]} 2...
d5 {[%clk 0:04:56.9]} 3. exd5 {[%clk 0:04:52.7]} 3... Qxd5 {[%clk 0:04:55.1]} 4.
Nc3 {[%clk 0:04:50.4]} 4... Nc6 {[%clk 0:04:54.6]} 5. Nxd5 {[%clk 0:04:48.7]}
5... Bd6 {[%clk 0:04:51.8]} 6. a3 {[%clk 0:04:43.2]} 6... Nge7 {[%clk
0:04:49.9]} 7. Nf3 {[%clk 0:04:41.2]} 7... Nxd5 {[%clk 0:04:48.4]} 8. c4 {[%clk
0:04:31.3]} 8... Nf6 {[%clk 0:04:46.6]} 9. Bg5 {[%clk 0:04:25.9]} 9... Nd7
{[%clk 0:04:40.9]} 10. Be2 {[%clk 0:04:20.8]} 10... a5 {[%clk 0:04:39.4]} 11.
O-O {[%clk 0:04:19.1]} 11... O-O {[%clk 0:04:37.6]} 12. Re1 {[%clk 0:04:14.4]}
12... Nc5 {[%clk 0:04:33]} 13. Be3 {[%clk 0:04:12.3]} 13... Ne6 {[%clk
0:04:30.8]} 14. d4 {[%clk 0:03:58.9]} 14... exd4 {[%clk 0:04:28.5]} 15. Nxd4
{[%clk 0:03:56.2]} 15... Ncxd4 {[%clk 0:04:25.9]} 16. Bxd4 {[%clk 0:03:54.1]}
16... Rd8 {[%clk 0:04:25]} 17. Be5 {[%clk 0:03:27.7]} 17... Bxe5 {[%clk
0:04:20.7]} 18. Qc2 {[%clk 0:03:14.9]} 18... Nd4 {[%clk 0:04:19]} 19. Qe4 {[%clk
0:03:06.4]} 19... f6 {[%clk 0:04:17.1]} 20. Rad1 {[%clk 0:02:56.3]} 20... c6
{[%clk 0:04:06.2]} 21. Bd3 {[%clk 0:02:45.6]} 21... Bf5 {[%clk 0:03:55.3]} 22.
Qe3 {[%clk 0:02:27.1]} 22... Bxd3 {[%clk 0:03:35]} 23. Rxd3 {[%clk 0:02:21.4]}
23... Nc2 {[%clk 0:03:33.7]} 24. Rxd8+ {[%clk 0:02:19.7]} 24... Rxd8 {[%clk
0:03:32.6]} 25. Qe4 {[%clk 0:01:57.7]} 25... Nxe1 {[%clk 0:03:25]} 26. Qxe1
{[%clk 0:01:56.4]} 26... Bxb2 {[%clk 0:03:20.7]} 27. h4 {[%clk 0:01:41.6]} 27...
Be5 {[%clk 0:03:19.1]} 28. Qxa5 {[%clk 0:01:38.8]} 28... Rd1+ {[%clk 0:03:16.7]}
0-1